Cogmind - Beta 16.1 @@@ ROGUE MODE // 2026.02.21 @ 06:46:39 Player: Rocket Result: Self-destructed Performance ------------- Evolutions (5) 2500 Regions Visited (12) 2400 Robots Destroyed (112) 560 Value Destroyed (3799) 3799 Prototype IDs (13) 260 Alien Tech Used (0) 0 Bonus (1333) 1333 TOTAL SCORE: 10852 Bonus ------- Met Data Miner 300 Met Warlord at Base 500 MAIN.C Attacked Warlord 500 Warlord Defense Kills 434 Friendly Fire -401 Cogmind --------- Core Integrity 394/1000 Matter 247/300 Energy 100/100 System Corruption 4% Temperature Cool (0) Movement Core (50) Location -5/Warlord Parts ------- > --- POWER (2) -------- (None) > --- PROPULSION (4) --- (None) > --- UTILITY (9) ------ (None) > --- WEAPON (2) ------- (None) > --- INVENTORY (5) ---- Angular Momentum Engine EM Shield Improved Arc Projector Mass Driver Power Maul Peak State ------------ > --- POWER ------------ Angular Momentum Engine Fission Core > --- PROPULSION ------- Compact Wheel Compact Wheel Armored Wheel Armored Wheel > --- UTILITY ---------- Advanced Heat Sink Cargo Storage Unit Advanced Sensor Array Core Analyzer Makeshift Ablative Armor Makeshift Ablative Armor EM Disruption Field Hacking Suite > --- WEAPON ----------- Arc Thrower RU-N14's Throwing Claymores v3 > --- INVENTORY -------- Improved Deuterium Engine Angular Momentum Engine Light Angular Momentum Engine Light Treads Armored Wheel Compact Battery Matter Compressor Improved Sensor Array Advanced Terrain Scanner Advanced ECM Suite EM Shield EM Shield Makeshift System Shield Dynamic Insulation System Improved Field Recycling Unit Arc Thrower Improved EM Pulse Cannon Improved EM Pulse Cannon Proton Cannon Disruptor Cannon Advanced Plasma Cannon Enhanced Gauss Cannon Hypervelocity Gauss Cannon Precision Grenade Launcher Precision Grenade Launcher Power Maul Falx Falx Falx Sapper Charge [Rating: 78] Favorites ----------- Power Angular Momentum Engine Engine Angular Momentum Engine Power Core Fission Core Propulsion Armored Wheel Treads Light Treads Leg Carbon-fiber Leg Wheel Armored Wheel Utility Huge Storage Unit Device EM Disruption Field Storage Huge Storage Unit Processor Improved Signal Interpreter Hackware Hacking Suite Protection Makeshift Ablative Armor Weapon Improved EM Pulse Cannon Energy Gun Improved Arc Projector Energy Cannon Improved EM Pulse Cannon Ballistic Gun Gauss Rifle Launcher Precision Grenade Launcher Special Weapon RU-N14's Throwing Claymores v3 Impact Weapon Power Maul Slashing Weapon Falx Piercing Weapon Spear Build | -11 -10 -9 -8 -7 -7 -7 -6 -6 -5 -5 -5 -5 ------- Run | Yrd Mat Mat Mat Fac Low Dat Pro Fac Fac Upp Upp War Slots Evolved 10 | . . 2 2 2 . . . 2 2 . . . Power 1 | . . . . . . . . . 1 . . . Propulsion 2 | . . 2 . . . . . . . . . . Utility 7 | . . . 2 2 . . . 2 1 . . . Weapon . | . . . . . . . . . . . . . Parts Attached 146 | 6 12 12 32 12 2 . 14 28 9 5 3 11 Power 14 | 1 2 2 3 1 . . 2 1 1 1 . . Engine 11 | 1 1 2 2 1 . . 2 1 1 . . . Core 3 | . 1 . 1 . . . . . . 1 . . Reactor . | . . . . . . . . . . . . . Propulsion 41 | 2 3 2 16 1 1 . 6 7 . . 3 . Treads 3 | . . . 2 . . . . . . . 1 . Leg 11 | . . . 3 . . . 4 4 . . . . Wheel 27 | 2 3 2 11 1 1 . 2 3 . . 2 . Hover . | . . . . . . . . . . . . . Flight . | . . . . . . . . . . . . . Utility 53 | 1 3 4 9 4 1 . 3 14 7 2 . 5 Device 16 | . . 3 2 1 . . . 5 3 1 . 1 Storage 7 | 1 1 . . . . . 2 2 1 . . . Processor 10 | . 1 . 3 1 . . . 3 1 1 . . Hackware 2 | . . . . . . . . 1 1 . . . Protection 18 | . 1 1 4 2 1 . 1 3 1 . . 4 Artifact . | . . . . . . . . . . . . . Weapon 38 | 2 4 4 4 6 . . 3 6 1 2 . 6 Energy Gun 15 | 2 2 4 3 . . . . . . . . 4 Energy Cannon 9 | . . . 1 1 . . 1 5 . . . 1 Ballistic Gun 2 | . . . . 2 . . . . . . . . Ballistic Cannon . | . . . . . . . . . . . . . Launcher 7 | . 2 . . 2 . . 2 . . 1 . . Special Weapon 1 | . . . . . . . . . . . . 1 Impact Weapon 1 | . . . . . . . . 1 . . . . Slashing Weapon 2 | . . . . . . . . . 1 1 . . Piercing Weapon 1 | . . . . 1 . . . . . . . . Special Melee Weapon . | . . . . . . . . . . . . . Unidentified Prototypes 2 | . . . . 1 . . . . . . . 1 Corrupted Parts 7 | . . . 1 . . . 5 . 1 . . . System Corruption 55 | . . . 9 . . . 42 . 4 . . . Parts Lost 50 | . . 2 10 5 1 . 5 4 . 4 3 16 Power 7 | . . 1 1 1 . . 1 . . . . 3 Propulsion 18 | . . 1 5 1 1 . 1 . . 1 2 6 Utility 15 | . . . 2 1 . . 2 3 . 2 1 4 Weapon 10 | . . . 2 2 . . 1 1 . 1 . 3 Highest Loss Streak 10 | . . 2 4 2 1 . 2 2 . 4 2 10 To Critical Strikes 1 | . . . . . . . . . . . . 1 Average Backups 23 | 1 10 22 23 24 23 24 22 21 22 28 28 27 Power 2 | . 2 2 3 1 3 4 3 2 1 1 3 2 Propulsion 3 | 1 2 3 3 7 5 5 4 1 2 4 3 1 Utility 9 | . 3 12 12 10 10 10 8 12 10 11 10 9 Weapon 6 | . 2 4 3 4 5 5 5 4 7 11 12 13 Tool/Special . | . . . . . . . . . . . . . Unused Backups 53 | . 4 . 9 6 1 . 5 11 . . . 17 Power 7 | . 1 . . 1 . . . 3 . . . 2 Propulsion 8 | . 2 . . 2 . . 2 2 . . . . Utility 26 | . . . 9 2 1 . 2 6 . . . 6 Weapon 12 | . 1 . . 1 . . 1 . . . . 9 Tool/Special . | . . . . . . . . . . . . . Average Slot Usage (%) 91 | . 93 95 94 98 92 92 91 95 93 85 85 82 Engine 6 | . 12 3 7 6 7 7 6 6 10 9 5 4 Core 1 | . 1 6 1 . . . . . . 1 5 4 Leg 4 | . . . 2 . . . 16 5 . . . . Wheel 22 | . 28 41 29 29 30 30 13 19 23 19 20 19 Device 13 | . . 7 10 15 15 15 13 18 18 13 12 15 Storage 8 | . 14 11 9 7 7 7 10 9 5 5 5 4 Processor 8 | . 3 2 7 15 7 7 7 13 11 10 8 4 Hackware 1 | . . . . . . . . . 3 5 5 4 Protection 6 | . 4 . 7 6 7 7 5 6 5 4 5 11 Energy Gun 5 | . 24 20 15 2 . . . . . . . 6 Energy Cannon 3 | . . . 2 2 7 7 7 5 5 5 5 . Launcher 2 | . 3 1 . 2 7 7 5 1 . . . . Peak Build Rating 78 | 6 10 18 25 39 38 38 45 73 70 68 71 78 Average Rating 44 | 4 7 15 19 33 37 38 39 58 67 66 68 65 On Entrance 35 | . 6 10 16 25 36 38 38 38 56 68 68 62 Avg Prop Armor Cover (%) 9 | . . . 8 . . . 13 3 . . 4 6 Naked Turns 19 | . . . . . . . . . . . . 19 Heaviest Build 198 | 10 92 99 106 108 121 121 123 122 185 192 195 198 Greatest Support 80 | 32 32 52 58 48 46 46 60 80 46 46 56 56 Greatest Overweight (x) 10 | . 4 2 9 2 3 2 9 9 4 5 7 10 Average Overweight (x) 2 | . 1 1 1 2 2 2 3 1 2 4 3 3 Largest Inventory Capacity 30 | 8 25 25 25 25 25 25 25 25 30 30 30 30 Average Capacity 25 | 6 18 25 25 25 25 25 25 25 26 30 30 29 Most Carried 30 | 3 16 25 25 25 25 25 25 25 30 30 30 30 Average Carried 23 | 2 11 23 23 24 24 25 23 23 23 29 28 28 Final Capacity 30 | 8 25 25 25 25 25 25 25 25 30 30 30 5 Final Carried 30 | 3 15 25 25 25 25 25 16 23 30 30 29 5 Class Distribution -------------------- 53% | Mutant 28% | Hauler-Mutant 14% | Scavenger-Mutant Dominant Class ---------------- Mutant | -10/Materials Mutant | -9/Materials Scavenger-Mutant | -8/Materials Mutant | -7/Factory Mutant | -7/Lower Caves Mutant | -7/Data Miner Scavenger-Mutant | -6/Proximity Caves Mutant | -6/Factory Mutant | -5/Factory Hauler-Mutant | -5/Upper Caves Hauler-Mutant | -5/Upper Caves Hauler-Mutant | -5/Warlord Resources | -11 -10 -9 -8 -7 -7 -7 -6 -6 -5 -5 -5 -5 ----------- Run | Yrd Mat Mat Mat Fac Low Dat Pro Fac Fac Upp Upp War Matter Collected 3865 | 238 396 311 586 445 205 . 310 546 90 379 37 322 Remotely . | . . . . . . . . . . . . . Salvage Created 4151 | . 236 353 804 892 132 . 801 549 90 224 . 70 Parts 224 | . 22 23 37 46 8 . 48 25 5 4 . 6 Haulers Intercepted 1 | . . . . 1 . . . . . . . . Recyclers Shooed 5 | . . . 1 4 . . . . . . . . Parts Field Recycled 20 | . . 20 . . . . . . . . . . Retrieved Matter 68 | . . 68 . . . . . . . . . . Parts Self-Destructed 26 | . . . . . . . 24 . . 2 . . Prevented 27 | . . . . . 7 . 19 . . 1 . . Parts Restored . | . . . . . . . . . . . . . Kills | -11 -10 -9 -8 -7 -7 -7 -6 -6 -5 -5 -5 -5 ------- Run | Yrd Mat Mat Mat Fac Low Dat Pro Fac Fac Upp Upp War Combat Hostiles Destroyed 85 | . 8 9 14 11 3 . 23 8 1 4 . 4 Melee 1 | . . . . . . . . 1 . . . . Guns 25 | . 3 6 11 3 . . 2 . . . . . Cannons 8 | . . . 2 2 1 . . 2 . 1 . . AOE 40 | . 5 3 . 6 2 . 18 . . 2 . 4 Classes Destroyed 15 | . 4 2 4 2 . . 1 1 . 1 . . Worker 6 | . 2 . 3 1 . . . . . . . . Builder 7 | . 1 1 1 2 . . . 2 . . . . Tunneler 1 | . . . 1 . . . . . . . . . Hauler 1 | . . . . 1 . . . . . . . . Recycler 9 | . . . 2 7 . . . . . . . . Mechanic 1 | . . . . . . . . 1 . . . . Operator 1 | . . . 1 . . . . . . . . . Drone 2 | . . . . . . . 2 . . . . . Watcher 1 | . . 1 . . . . . . . . . . Swarmer 21 | . 3 . . 3 2 . 12 . . . . 1 Grunt 39 | . 5 7 9 2 . . 6 6 . 3 . 1 Brawler 1 | . . . . . . . . . . 1 . . Sentry 11 | . . 2 3 2 1 . 2 . 1 . . . Hunter 5 | . . . 2 3 . . . . . . . . Programmer 6 | . . . . 1 . . 1 2 . . . 2 Decomposer 1 | . . . . . . . . . . 1 . . Best Kill Streak 8 | . 4 4 6 6 2 . 8 2 1 2 . 3 Combat Bots Only 8 | . 3 2 4 5 2 . 8 2 1 2 . 3 Max Kills in Single Turn 3 | . 2 1 1 2 1 . 3 1 1 1 . 1 Gunslinging . | . . . . . . . . . . . . . Exploded 3 | . 2 1 . 2 1 . 3 . . 1 . 1 Melee 1 | . . . . . . . . 1 . . . . Uniques/NPCs Destroyed . | . . . . . . . . . . . . . Combat | -11 -10 -9 -8 -7 -7 -7 -6 -6 -5 -5 -5 -5 -------- Run | Yrd Mat Mat Mat Fac Low Dat Pro Fac Fac Upp Upp War Hostile Shots Fired 796 | . 26 39 87 167 40 . 96 132 4 27 44 134 Missed 270 | . 8 7 26 74 18 . 33 35 1 7 18 43 Hits 526 | . 18 32 61 93 22 . 63 97 3 20 26 91 Melee 8 | . . . . . . . . 1 . 4 . 3 Projectile 518 | . 18 32 61 93 22 . 63 96 3 16 26 88 Critical Strikes 23 | . . . 2 2 . . 2 7 . 2 3 5 Damage Taken 8848 | . 232 443 990 1232 205 . 1003 1496 66 603 402 2176 Core 1119 | . 45 74 15 87 24 . 121 147 24 39 39 504 Absorbed by Shields . | . . . . . . . . . . . . . Ignored by Resistances 170 | . . . . . . . . 170 . . . . Regen/Repaired (Parts) 136 | . . . . . . . . 79 35 . . 22 Core Remaining (%) 84 | 100 82 81 97 . . . 66 82 . . . . Volleys Fired 277 | . 23 38 56 42 8 . 40 35 4 15 . 16 Largest 2 | . 2 2 2 2 1 . 2 1 1 1 . 2 Hottest 131 | . 80 121 131 131 69 . 97 85 75 75 . 130 Shots Fired 396 | . 36 67 104 60 8 . 48 35 4 15 1 18 Gun 235 | . 29 61 99 32 . . 10 . . . . 4 Cannon 104 | . . . 5 22 4 . 21 35 4 11 1 1 Launcher 57 | . 7 6 . 6 4 . 17 . . 4 . 13 Special . | . . . . . . . . . . . . . Kinetic 29 | . . . . 19 . . 10 . . . . . Thermal 230 | . 29 61 101 28 . . . 11 . . . . Explosive 41 | . 7 6 . 6 . . 5 . . 4 . 13 Electromagnetic 96 | . . . 3 7 8 . 33 24 4 11 1 5 Robot Hit Streak 17 | . 3 10 17 17 5 . 7 5 5 3 . 11 Robot Miss Streak 5 | . 2 3 4 2 2 . 4 2 . 5 . 2 Penetration Max 1 | . . . . 1 . . . . . . . . Secondary Targets 1 | . . 1 . . . . . . . . . . Max Gunslinging Chain 1 | . . 1 . . . . . . . . . . Shots Hit Robots 284 | . 14 38 82 56 6 . 27 35 4 9 . 13 Core Hits 245 | . 14 27 81 44 7 . 34 11 2 9 . 16 Critical Kills 2 | . . . 1 . . . . 1 . . . . Critical Parts Destroyed 5 | . . . . . . . . 5 . . . . Critical Strikes 14 | . . . 5 1 . . 1 7 . . . . Burn 4 | . . . 4 . . . . . . . . . Meltdown 1 | . . . 1 . . . . . . . . . Corrupt 2 | . . . . . . . 1 1 . . . . Smash 6 | . . . . . . . . 6 . . . . Impale 1 | . . . . 1 . . . . . . . . Melee Attacks 53 | . . . . 17 . . . 30 4 1 1 . Impact 34 | . . . . . . . . 30 4 . . . Slashing 2 | . . . . . . . . . . 1 1 . Piercing 17 | . . . . 17 . . . . . . . . Sneak Attacks 9 | . . . . 6 . . . 2 . 1 . . Combat Hostiles . | . . . . . . . . . . . . . Follow-up Attacks . | . . . . . . . . . . . . . Damage Inflicted 10487 | . 527 720 1327 2035 198 . 2158 1366 106 852 . 1198 Guns 2367 | . 166 450 1114 435 . . 192 . . . . 10 Cannons 1894 | . . . 125 450 99 . 230 621 106 237 . 26 Explosions 4952 | . 361 270 88 695 99 . 1736 . . 541 . 1162 Melee 1274 | . . . . 455 . . . 745 . 74 . . Ramming . | . . . . . . . . . . . . . Kinetic 489 | . . . . 297 . . 192 . . . . . Thermal 2866 | . 166 450 1206 620 . . 320 104 . . . . Explosive 3612 | . 361 270 88 570 . . 620 . . 541 . 1162 Electromagnetic 2246 | . . . 33 93 198 . 1026 517 106 237 . 36 Impact 745 | . . . . . . . . 745 . . . . Slashing 74 | . . . . . . . . . . 74 . . Piercing 455 | . . . . 455 . . . . . . . . Highest Corruption 44 | . . . 9 1 1 1 44 3 4 14 14 14 Average Corruption 11 | . . . 9 1 1 1 26 1 4 10 14 5 Corruption Purged . | . . . . . . . . . . . . . Corruption Blocked . | . . . . . . . . . . . . . Effects 146 | . . . 13 4 4 . 63 15 2 20 14 11 Message Errors 35 | . . . 4 1 2 . 16 2 . 3 4 3 Matter Fused 36 | . . . 1 . . . 14 6 2 7 3 3 Heat Flow Errors 21 | . . . 5 . 1 . 9 3 . 1 2 . Energy Discharges 17 | . . . 2 . 1 . 8 1 . 3 2 . Parts Rejected 1 | . . . 1 . . . . . . . . . Parts Fused 4 | . . . . . . . 3 1 . . . . Data Loss (minor) 14 | . . . . 2 . . 4 2 . 4 . 2 Data Loss (major) 8 | . . . . . . . 4 . . 2 1 1 Misfires 5 | . . . . . . . 3 . . . 1 1 Alerts 4 | . . . . 1 . . 2 . . . . 1 Misdirections 1 | . . . . . . . . . . . 1 . Overload Shots . | . . . . . . . . . . . . . Overflow Damage 813 | . 10 . 95 190 . . 39 371 . 96 . 12 Projectiles 24 | . . . . . . . . . . 24 . . Explosions 248 | . 10 . 95 91 . . 39 . . 1 . 12 Melee 541 | . . . . 99 . . . 371 . 71 . . Knockbacks 7 | . . . . . . . . 7 . . . . Impact 7 | . . . . . . . . 7 . . . . Kinetic . | . . . . . . . . . . . . . Secondary . | . . . . . . . . . . . . . Self-Inflicted Damage 555 | . 42 38 115 171 7 . 24 . . 97 . 61 Shots 17 | . 2 2 2 4 1 . 2 . . 3 . 1 Rammed . | . . . . . . . . . . . . . Targets Rammed . | . . . . . . . . . . . . . Kicked . | . . . . . . . . . . . . . Crushed . | . . . . . . . . . . . . . Highest Temperature 403 | . 171 364 205 135 251 . 266 403 134 182 340 49 Average Temperature 79 | . 54 105 47 43 74 . 94 98 67 54 131 23 Received Heat Transfer 1909 | . 78 198 378 294 42 . 96 523 9 162 36 93 Effects 7 | . . 2 . . . . 1 3 . . 1 . Energy Bleed 4 | . . 2 . . . . 1 . . . 1 . Interference 2 | . . . . . . . . 2 . . . . Short Circuit 1 | . . . . . . . . 1 . . . . Siege Activations . | . . . . . . . . . . . . . Martial Activations . | . . . . . . . . . . . . . Shielding Activations . | . . . . . . . . . . . . . Robots Disrupted . | . . . . . . . . . . . . . Combat Hostiles . | . . . . . . . . . . . . . Robots Corrupted 11 | . . . . . . . 3 6 1 1 . . Combat Hostiles 10 | . . . . . . . 3 5 1 1 . . Parts Fried 11 | . . . . . 1 . 2 7 1 . . . Impact Corruptions 14 | . . . . . . . . 14 . . . . Robots Melted 1 | . . . 1 . . . . . . . . . Combat Hostiles 1 | . . . 1 . . . . . . . . . Parts Melted 14 | . 1 2 9 2 . . . . . . . . Heat Transferred 5192 | . 375 981 2635 877 . . 200 124 . . . . Parts Sabotaged . | . . . . . . . . . . . . . Parts Stolen . | . . . . . . . . . . . . . Parts Stripped . | . . . . . . . . . . . . . Power Chain Reactions 4 | . . . . 2 1 . 1 . . . . . Alert | -11 -10 -9 -8 -7 -7 -7 -6 -6 -5 -5 -5 -5 ------- Run | Yrd Mat Mat Mat Fac Low Dat Pro Fac Fac Upp Upp War Maximum Alert Level 1 | . . . . . . . . 1 . . . . Low Security (%) 92 | 100 100 100 100 100 . . . 75 100 . . . Level 1 7 | . . . . . . . . 24 . . . . Level 2 . | . . . . . . . . . . . . . Level 3 . | . . . . . . . . . . . . . Level 4 . | . . . . . . . . . . . . . Level 5 . | . . . . . . . . . . . . . High Security . | . . . . . . . . . . . . . Max Security . | . . . . . . . . . . . . . Peak Influence 339 | . 97 97 162 140 . . . 339 71 . . . Initial 339 | . . 18 32 62 . . . 339 71 . . . Average 93 | . 47 55 97 81 . . . 154 34 . . . Influence Increases 3091 | . 280 329 482 440 75 . 475 653 62 95 . 200 Destroy 0b10 Robot/C 1660 | . 160 180 280 220 60 . 420 160 20 80 . 80 Destroy 0b10 Robot/NC 150 | . 15 10 40 55 . . 10 15 . 5 . . Destroy Leader 364 | . 50 72 80 72 . . 30 40 10 10 . . Successful Hack 92 | . 7 6 5 23 . . . 27 24 . . . Disable Machine 120 | . . 15 45 30 . . . 30 . . . . Destroy Structure 165 | . 48 46 17 40 . . . 6 8 . . . Advance Influence 300 | . . . . . . . . 300 . . . . Lose Combat Pursuer 240 | . . . 15 . 15 . 15 75 . . . 120 Influence Decreases 3074 | . 236 296 421 498 155 . 411 571 208 95 . 183 Entered New Map 277 | . . 26 45 76 30 . . 25 75 . . . Time Decay 2407 | . 236 250 276 372 115 . 361 506 133 75 . 83 Lost Part 390 | . . 20 100 50 10 . 50 40 . 20 . 100 Squads Dispatched 23 | . 3 4 3 5 . . . 8 . . . . Investigation 10 | . 2 3 1 2 . . . 2 . . . . Extermination 6 | . . . . 2 . . . 4 . . . . Reinforcement 7 | . 1 1 2 1 . . . 2 . . . . Assault . | . . . . . . . . . . . . . Garrison . | . . . . . . . . . . . . . Intercept . | . . . . . . . . . . . . . Searches Triggered . | . . . . . . . . . . . . . Construction Impeded 1 | . . . 1 . . . . . . . . . Haulers Reinforced 1 | . . . . 1 . . . . . . . . Active Scanning Responses . | . . . . . . . . . . . . . Cargo Convoy Interrupts . | . . . . . . . . . . . . . Stealth | -11 -10 -9 -8 -7 -7 -7 -6 -6 -5 -5 -5 -5 --------- Run | Yrd Mat Mat Mat Fac Low Dat Pro Fac Fac Upp Upp War Distress Signals 10 | . 1 2 3 . . . 1 . . . . 3 Communications Jammed . | . . . . . . . . . . . . . Distress Signals . | . . . . . . . . . . . . . Times Spotted 147 | . 11 15 20 11 4 . 25 20 2 8 1 30 Peak Tracking Total 13 | . 5 3 5 5 3 . 7 4 1 4 1 13 Tactical Retreats 14 | . . . 1 . 1 . 1 5 . 2 1 3 ECM-based Alert Blocks 8 | . . . . . . . . 3 . 4 1 . Traps | -11 -10 -9 -8 -7 -7 -7 -6 -6 -5 -5 -5 -5 ------- Run | Yrd Mat Mat Mat Fac Low Dat Pro Fac Fac Upp Upp War Traps Triggered 10 | . 1 2 . 1 . . . 5 . . 1 . Indirectly . | . . . . . . . . . . . . . Trap Hack Attempts . | . . . . . . . . . . . . . Triggered . | . . . . . . . . . . . . . Disarmed . | . . . . . . . . . . . . . Reprogrammed . | . . . . . . . . . . . . . Reused . | . . . . . . . . . . . . . Traps Extracted . | . . . . . . . . . . . . . Installed . | . . . . . . . . . . . . . Triggered . | . . . . . . . . . . . . . Machines | -11 -10 -9 -8 -7 -7 -7 -6 -6 -5 -5 -5 -5 ---------- Run | Yrd Mat Mat Mat Fac Low Dat Pro Fac Fac Upp Upp War Machines Disabled 10 | . . 1 3 2 . . 2 2 . . . . Max in Single Turn 2 | . . 1 2 1 . . 1 1 . . . . Machines Repaired . | . . . . . . . . . . . . . Machines Dismantled . | . . . . . . . . . . . . . Machines Sabotaged . | . . . . . . . . . . . . . Overloaded Fab Kills . | . . . . . . . . . . . . . Hacking | -11 -10 -9 -8 -7 -7 -7 -6 -6 -5 -5 -5 -5 --------- Run | Yrd Mat Mat Mat Fac Low Dat Pro Fac Fac Upp Upp War Machines Accessed 29 | . 2 2 1 7 . 3 . 6 2 . . 6 Terminals 11 | . 2 2 . 4 . . . 2 1 . . . Fabricators 3 | . . . . 2 . . . 1 . . . . Repair Stations 2 | . . . . . . . . 1 1 . . . Recycling Units . | . . . . . . . . . . . . . Scanalyzers 4 | . . . 1 1 . . . 2 . . . . Garrison Access . | . . . . . . . . . . . . . Total Hacks 94 | . 5 6 5 21 . 24 . 20 4 . . 9 Successful 61 | . 1 1 4 6 . 24 . 13 3 . . 9 Failed 31 | . 4 5 1 14 . . . 6 1 . . . Catastrophic 5 | . 1 1 . 3 . . . . . . . . Database Lockouts 2 | . . . . 1 . . . 1 . . . . Manual 15 | . 5 6 . 4 . . . . . . . . Terminals 31 | . 5 6 . 13 . . . 6 1 . . . Fabricators 7 | . . . . 5 . . . 2 . . . . Repair Stations 9 | . . . . . . . . 6 3 . . . Recycling Units . | . . . . . . . . . . . . . Scanalyzers 14 | . . . 5 3 . . . 6 . . . . Garrison Access . | . . . . . . . . . . . . . Terminal Hacks 40 | . 1 1 . 2 . 24 . 2 1 . . 9 Record 15 | . . . . 1 . 5 . . . . . 9 Part Schematic 11 | . 1 . . . . 10 . . . . . . Robot Schematic 6 | . . . . . . 6 . . . . . . Robot Analysis 1 | . . 1 . . . . . . . . . . Prototype ID Bank 3 | . . . . . . 3 . . . . . . Emergency Access Points 1 | . . . . . . . . 1 . . . . Patrol Status 1 | . . . . . . . . . 1 . . . Zone Layout 2 | . . . . 1 . . . 1 . . . . Fabricator Hacks 5 | . . . . 3 . . . 2 . . . . Load Schematic 2 | . . . . 1 . . . 1 . . . . Build 3 | . . . . 2 . . . 1 . . . . Repair Station Hacks 7 | . . . . . . . . 5 2 . . . Scan Component 4 | . . . . . . . . 3 1 . . . Repair 3 | . . . . . . . . 2 1 . . . Recycling Unit Hacks . | . . . . . . . . . . . . . Scanalyzer 9 | . . . 4 1 . . . 4 . . . . Insert Component 2 | . . . 1 . . . . 1 . . . . Analyze 2 | . . . 1 . . . . 1 . . . . Retrieve Study 5 | . . . 2 1 . . . 2 . . . . Garrison Access Hacks . | . . . . . . . . . . . . . Unauthorized Hacks . | . . . . . . . . . . . . . Terminals . | . . . . . . . . . . . . . Fabricators . | . . . . . . . . . . . . . Repair Stations . | . . . . . . . . . . . . . Recycling Units . | . . . . . . . . . . . . . Scanalyzers . | . . . . . . . . . . . . . Garrison Access . | . . . . . . . . . . . . . Data Cores Recovered . | . . . . . . . . . . . . . Used . | . . . . . . . . . . . . . Hacking Detections 19 | . 2 2 1 7 . . . 5 2 . . . Full Trace Events 8 | . 2 1 1 2 . . . 2 . . . . Feedback Events . | . . . . . . . . . . . . . Feedback Blocked . | . . . . . . . . . . . . . Robot Schematics Acquired 6 | . . . . . . 6 . . . . . . Robots Built . | . . . . . . . . . . . . . Authchips . | . . . . . . . . . . . . . Time . | . . . . . . . . . . . . . Total Robot Build Rating . | . . . . . . . . . . . . . Part Schematics Acquired 12 | . 1 . 1 . . 10 . . . . . . Parts Built 3 | . . . . 1 . . . 2 . . . . Authchips . | . . . . . . . . . . . . . Time 124 | . . . . 93 . . . 31 . . . . Total Part Build Rating 5 | . . . . 1 . . . 4 . . . . Part Studies Acquired 5 | . . . 2 1 . . . 2 . . . . Parts Repaired 3 | . . . . . . . . 2 1 . . . Time 80 | . . . . . . . . 64 16 . . . Parts Recycled . | . . . . . . . . . . . . . Recycled Matter . | . . . . . . . . . . . . . Retrieved Matter . | . . . . . . . . . . . . . Retrieved Components . | . . . . . . . . . . . . . Parts Scanalyzed 2 | . . . 1 . . . . 1 . . . . Part Schematics Acquired 1 | . . . 1 . . . . . . . . . Parts Damaged . | . . . . . . . . . . . . . Bothacking | -11 -10 -9 -8 -7 -7 -7 -6 -6 -5 -5 -5 -5 ------------ Run | Yrd Mat Mat Mat Fac Low Dat Pro Fac Fac Upp Upp War Used RIF Installer . | . . . . . . . . . . . . . Robots Hacked . | . . . . . . . . . . . . . Non-combat . | . . . . . . . . . . . . . Combat . | . . . . . . . . . . . . . Robot Hacks Applied . | . . . . . . . . . . . . . Relay Couplers Released . | . . . . . . . . . . . . . Fabnet Peak Effective % . | . . . . . . . . . . . . . Robots Rewired . | . . . . . . . . . . . . . Allies Hacked . | . . . . . . . . . . . . . Hacks Repelled . | . . . . . . . . . . . . . Allies | -11 -10 -9 -8 -7 -7 -7 -6 -6 -5 -5 -5 -5 -------- Run | Yrd Mat Mat Mat Fac Low Dat Pro Fac Fac Upp Upp War Total Allies . | . . . . . . . . . . . . . Largest Group . | . . . . . . . . . . . . . Highest-Rated Group . | . . . . . . . . . . . . . Highest-Rated Ally . | . . . . . . . . . . . . . Total Orders . | . . . . . . . . . . . . . Ally Attacks . | . . . . . . . . . . . . . Total Damage . | . . . . . . . . . . . . . Kills . | . . . . . . . . . . . . . Allies Corrupted . | . . . . . . . . . . . . . Allies Melted . | . . . . . . . . . . . . . Intel | -11 -10 -9 -8 -7 -7 -7 -6 -6 -5 -5 -5 -5 ------- Run | Yrd Mat Mat Mat Fac Low Dat Pro Fac Fac Upp Upp War Active Infowar (turns) 7676 | . . . 11 922 547 84 1777 1365 326 579 282 1783 Optics 219 | . . . . . . . . 219 . . . . Sensors 7591 | . . . 11 922 547 84 1777 1365 326 579 197 1783 Terrain 71 | . . . . . . . . . 71 . . . Machine Analysis 70 | . . . . . . . . 70 . . . . ECM 356 | . . . . . . . . 191 . 80 85 . Robot Analysis Total 1 | . . 1 . . . . . . . . . . Derelict Logs Recovered 5 | . . . . . 1 . 2 . . 1 1 . Drone Launches . | . . . . . . . . . . . . . Drone Recoveries . | . . . . . . . . . . . . . Exploration | -11 -10 -9 -8 -7 -7 -7 -6 -6 -5 -5 -5 -5 ------------- Run | Yrd Mat Mat Mat Fac Low Dat Pro Fac Fac Upp Upp War Turns Passed 9582 | 52 619 576 645 922 547 84 1777 1367 330 579 282 1802 Spaces Moved 5927 | 41 471 397 323 589 449 77 962 725 208 335 193 1157 Core 39 | 1 . . . . . . . . . . . 38 Treads . | . . . . . . . . . . . . . Legs 420 | . . . . . . . 304 116 . . . . Wheels 5468 | 40 471 397 323 589 449 77 658 609 208 335 193 1119 Hover . | . . . . . . . . . . . . . Flight . | . . . . . . . . . . . . . Fastest Speed 50 | 50 80 102 100 110 110 110 110 107 107 122 127 50 Average Speed 128 | 98 106 108 113 110 110 110 157 122 116 147 138 140 Slowest Speed 610 | 100 140 120 215 110 125 110 610 215 137 155 185 240 Overloaded Moves . | . . . . . . . . . . . . . Propulsion Burnouts . | . . . . . . . . . . . . . Robots Hopped . | . . . . . . . . . . . . . Potential Cave-ins 3 | . . . . . . . . . . 3 . . Cave-ins Triggered . | . . . . . . . . . . . . . Exploration Rate (%) 42 | 3 64 31 20 14 74 68 88 18 5 46 31 86 Regions Visited 12 Branch Regions 6 Pre-discovered Areas . | . . . . . . . . . . . . . Known Exits Taken 8 | . 1 . 1 1 1 1 1 . 1 . 1 . Unknown Exits Taken 4 | 1 . 1 . . . . . 1 . 1 . . Scrap Searched 7 | . . . . . 1 . 2 . . 1 3 . Spaces Dug 20 | . . . . 2 . . . 6 4 . 1 7 Terrain Destroyed 315 | . 47 50 19 51 5 . 36 6 4 49 1 47 Melee 13 | . . . . 2 . . . 6 4 . 1 . Projectile . | . . . . . . . . . . . . . AOE 302 | . 47 50 19 49 5 . 36 . . 49 . 47 Terrain Rammed . | . . . . . . . . . . . . . Walls Destroyed . | . . . . . . . . . . . . . Machines Disabled . | . . . . . . . . . . . . . Actions | -11 -10 -9 -8 -7 -7 -7 -6 -6 -5 -5 -5 -5 --------- Run | Yrd Mat Mat Mat Fac Low Dat Pro Fac Fac Upp Upp War Total 7465 | 49 551 485 514 782 495 76 1177 1121 286 401 205 1323 Wait 704 | . 19 14 36 83 26 . 134 211 37 38 . 106 Move 5915 | 40 470 396 322 588 448 76 961 724 207 334 192 1157 Hop . | . . . . . . . . . . . . . Pick Up 139 | 3 14 13 23 14 3 . 7 35 16 3 1 7 Fast Attach 64 | 6 4 3 16 5 3 . 5 14 1 . 1 6 Attach 66 | . 1 4 14 7 1 . 9 6 6 4 4 10 Detach 14 | . . 1 3 . . . . 2 2 2 2 2 Swap 76 | . 10 9 10 11 . . 5 18 4 3 3 3 Drop 152 | . 10 7 34 15 6 . 16 41 5 1 1 16 Fire 277 | . 23 38 56 42 8 . 40 35 4 15 . 16 Melee 53 | . . . . 17 . . . 30 4 1 1 . Ram . | . . . . . . . . . . . . . Kick . | . . . . . . . . . . . . . Crush . | . . . . . . . . . . . . . Escape Stasis 5 | . . . . . . . . 5 . . . . Rewire . | . . . . . . . . . . . . . Trap . | . . . . . . . . . . . . . Miscellaneous . | . . . . . . . . . . . . . Route ------- -11/Scrapyard -10/Materials (discovered 3 exits: *Mat / [*Min x2]) -9/Materials (discovered 2 exits: *Mat / [*Min]) -8/Materials -7/Factory (discovered 2 exits: *Fac / *Low) -7/Lower Caves (discovered 2 exits: Low / *Dat) -7/Data Miner -6/Proximity Caves -6/Factory -5/Factory (discovered 2 exits: *Fac / *Upp) -5/Upper Caves -5/Upper Caves -5/Warlord History --------- Turn | Location | Event 12 | -11/Scrapyard | Discovered new exit (range 15) 53 | -11/Scrapyard | Entered Materials 54 | -10/Materials | Met a group of wandering Federalists 138 | -10/Materials | Discovered new exit (range 16) 220 | -10/Materials | Discovered new exit (range 12) 330 | -10/Materials | Build established: Mutant 437 | -10/Materials | Discovered new exit (range 3) 632 | -10/Materials | Identified exit to Materials 672 | -10/Materials | Entered another Materials area 672 | -9/Materials | Evolved 2 slots: Propulsion x2 790 | -9/Materials | Discovered new exit (range 5) 1115 | -9/Materials | Discovered new exit (range 16) 1248 | -9/Materials | Entered another Materials area 1248 | -8/Materials | Evolved 2 slots: Utility x2 1480 | -8/Materials | Lost 4 parts (3n1w) 1816 | -8/Materials | Discovered new exit (range 4) 1822 | -8/Materials | Identified exit to Factory 1842 | -8/Materials | Build established: Scavenger-Mutant 1893 | -8/Materials | Entered Factory 1893 | -7/Factory | Evolved 2 slots: Utility x2 2033 | -7/Factory | Discovered new exit (range 9) 2047 | -7/Factory | Identified exit to Lower Caves 2078 | -7/Factory | Central database locked down 2153 | -7/Factory | Build established: Mutant 2390 | -7/Factory | Discovered new exit (range 8) 2398 | -7/Factory | Identified exit to Factory 2565 | -7/Factory | Fabricated Cargo Storage Unit? 2815 | -7/Factory | Entered Lower Caves 3031 | -7/Lower Caves | Identified exit to Lower Caves 3086 | -7/Lower Caves | Attracted the attention of an 0b10 checkpoint 3350 | -7/Lower Caves | A Derelict revealed a hidden shortcut to meet someone special 3360 | -7/Lower Caves | Identified exit to Data Miner 3362 | -7/Lower Caves | Entered Data Miner 3362 | -7/Data Miner | Discovered new exit (range 6) 3383 | -7/Data Miner | Met Data Miner 3422 | -7/Data Miner | Received God Mode back door access code from Data Miner 3445 | -7/Data Miner | Identified exit to Proximity Caves 3446 | -7/Data Miner | Entered Proximity Caves 3448 | -6/Proximity Caves | Attracted the attention of an 0b10 checkpoint 3679 | -6/Proximity Caves | Spotter reported a threat 3768 | -6/Proximity Caves | Learned location of 1 exit from Lower Caves 3841 | -6/Proximity Caves | Learned 4 Factory zone layouts 3855 | -6/Proximity Caves | Spotter reported a threat 4021 | -6/Proximity Caves | Attracted the attention of an 0b10 base 4069 | -6/Proximity Caves | Destroyed 8 combat bots 4096 | -6/Proximity Caves | System corruption reached 10% 4128 | -6/Proximity Caves | System corruption reached 30% 4392 | -6/Proximity Caves | Build established: Scavenger-Mutant 4573 | -6/Proximity Caves | Discovered exit to Factory (range 7) 5223 | -6/Proximity Caves | Entered Factory 5223 | -6/Factory | Evolved 2 slots: Utility x2 5769 | -6/Factory | Found Hvy. Insulated Plating 5777 | -6/Factory | Found Hvy. Insulated Plating 5780 | -6/Factory | Found Hvy. Insulated Plating 5802 | -6/Factory | Central database locked down 5909 | -6/Factory | Build established: Mutant 6152 | -6/Factory | Repaired Arm. Wheel+ 6185 | -6/Factory | Repaired Arm. Wheel+ 6264 | -6/Factory | Fabricated Arm. Wheel? 6563 | -6/Factory | Discovered new exit (range 14) 6590 | -6/Factory | Entered another Factory area 6590 | -5/Factory | Evolved 2 slots: Power x1, Utility x1 6685 | -5/Factory | Repaired Arm. Wheel+ 6750 | -5/Factory | Discovered new exit (range 4) 6753 | -5/Factory | Discovered new exit (range 8) 6753 | -5/Factory | Identified exit to Factory 6760 | -5/Factory | Identified exit to Upper Caves 6920 | -5/Factory | Entered Upper Caves 7101 | -5/Upper Caves | Build established: Hauler-Mutant 7148 | -5/Upper Caves | System corruption reached 10% 7178 | -5/Upper Caves | Lost 4 parts (1n2u1w) 7316 | -5/Upper Caves | Learned 4 Factory zone layouts 7333 | -5/Upper Caves | Found DCF Scrap (14 items) 7487 | -5/Upper Caves | Discovered new exit (range 7) 7499 | -5/Upper Caves | Entered another Upper Caves area 7556 | -5/Upper Caves | Identified exit to Warlord 7660 | -5/Upper Caves | Spotted B-75 Beast 7781 | -5/Upper Caves | Entered Warlord 7852 | -5/Warlord | System corruption cleaned by Quarantine Array 8306 | -5/Warlord | Found Prototype Special Weapon 8306 | -5/Warlord | Identified RU-N14's Throwing Claymores v3 8526 | -5/Warlord | Met Warlord 8551 | -5/Warlord | Warlord's base attacked by MAIN.C 8809 | -5/Warlord | Lost 3 allies 8901 | -5/Warlord | Warlord forces counterattacked 9127 | -5/Warlord | Spotted Striker 9137 | -5/Warlord | Spotted Striker 9187 | -5/Warlord | Spotted Executioner 9226 | -5/Warlord | Warlord base infiltrated, sounded retreat 9237 | -5/Warlord | Lost 9 allies 9275 | -5/Warlord | Lost 10 parts (2p3n2u3w) 9541 | -5/Warlord | Core integrity fell below 50% 9564 | -5/Warlord | Released all parts (7) 9583 | -5/Warlord | Self-destructed Last Messages --------------- prototype support. 09554_ Penetrated by Slug. 09559_ Slug penetrates Wall. 09559_ Com. Wheel+ destroyed. 09559_ Slug penetrates Wall. 09560_ Slug penetrates Earth. 09560_ Mak. Ablative Armor destroyed. 09560_ Slug penetrates Earth. 09561_ Dropped Matter Compressor. 09562_ Extracted 250 matter. 09562_ Slug penetrates Wall. 09562_ S-27 Virus destroyed. 09564_ Released Adv. Sensor Array. 09564_ Released Hacking Suite. 09564_ Released Cargo Storage Unit. 09564_ Released Mak. Light Armor Plating. 09564_ Released Dynamic Insulation System. 09564_ Released Prc. Grenade Launcher. 09569_ M&J8L1U0B DFOWBG RCKR%2|S7HG,8Z6VP>4/& 09570_ 5K-I0X(c) destroyed. Map ----- +----------------------------------------------------+ | # ### # #??????????????# || #?????????????????? | | ###?# ######??????????????# #?????????????????? | | #???# #???????????????????# |#?????????????????? | | #???# #??####?????????????# #??##"""##????????? | | ???## ## !!#?????????????## ###?## X##???????? | | #### # #?????????????##+##### #???????? | | + + #?????????????# ##+#######???????? | | #### # [[#?????????????# ^ #????????? | | ???## #######?????????????# #????????? | | ????# #####???????????????# #????????? | | ##### # #???????????????# ##### #????????? | | + #???????????????#######???# #????????? | | ### # #????##############???????# #????????? | | # # #????"""""""""""""#???????# #????????? | | + # #???#""" """""""#???????# #????????? | | ### #####???#""""X ""#???????# ########?? | | ##??# #???????#""" ""#???????# ## #?? | | ##### ###?????# " ""#???????# #?? | | # # # ###???# ""#???????# #?? | | # # # #???# """[ ""#???????# #?? | | #???#""""[ "#?############ #?? | | # # #????"""" #?# #?## ##?? | | # ####?"""""""[[ #?# #??# #??? | | # #!*]############ #?# #??# #??? | | # ###&!]!!!#########++#?# ] [ #??# #??? | | # ]/]!!"hh @ #?# ]/[ #### #### | | ]!/!"=! ^#?# ] [ # # | | # [%=!" #?# # =% " | | # !!/##############?#####+#+## ==![ | | #"!"##?????############ ![%%!! | | # # #?????# ## [ ! [%=!*== | | # ###???# ### [ %!%!%%= | | ## "# # [ + % =%=%]=%!% | | % % /// #### ### =![!%*=[ | | [ #??###?# [!%%*!! | | % =%= #??????# ![]! | | * !%! = ######## ## | | * = =!= = # ##""# " #? | | !%= %== %=# ] # #??? | | % =%# #### % #??? | | ! # ### % #??? | | % % " % ######+##### | | #### ###### # ####%% ##"" ### # | | #?#### ###### ## # #??## #?# # | | ????#" #""#?? X" ##### #?# # | | ????#"" #X"#??# "## #" #?# ] ! # | | ????#" "#??# X"## ## ### # | | ????#"" "#??# X X "## # ## & ] # | | ????##""""##??##"""""## # ## # | | ?????######????######## " + # | +----------------------------------------------------+ Best States ------------- Heat Dissipation 59 Energy Generation 31 Energy Capacity 510 Matter Stores 600 Matter Capacity 650 Sight Range 22 Robot Scan Range 16 Terrain Scan Range 20 Terrain Scan Density 10 ECM Strength 2 EM Shielding 2 Armor Coverage 600 Resistance: EM 30 Evasion (%) 50 Targeting Accuracy 8 Core Analysis 6 Kinecelleration 30 Offensive Hacking 10 Item Schematics ----------------- Cargo Storage Unit | -10/Materials | Hacked Arm. Wheel | -8/Materials | Scanalyzed Combat Drone Bay | -7/Data Miner | Free Lgt. Regenerative Plating | -7/Data Miner | Free Exp. Propulsion Shielding | -7/Data Miner | Free Shock Maul | -7/Data Miner | Free Cld. Aerolev Unit | -7/Data Miner | Free Cmb. Gravmag System | -7/Data Miner | Free Adv. Salvage Targeting Computer | -7/Data Miner | Free Adv. Plasma Cannon | -7/Data Miner | Free Myomer Leg | -7/Data Miner | Free Fusion Compressor | -7/Data Miner | Free Robot Schematics ------------------ G-47 Trooper | -7/Data Miner | Free H-66 Slayer | -7/Data Miner | Free W-25 Informer | -7/Data Miner | Free A-15 Conveyor | -7/Data Miner | Free B-48 Gladiator | -7/Data Miner | Free E-15 Imp | -7/Data Miner | Free Fabricated ------------ Cargo Storage Unit | x1 | -7/Factory Arm. Wheel | x2 | -6/Factory Repaired ---------- Arm. Wheel | 54% | -6/Factory Arm. Wheel | 67% | -6/Factory Arm. Wheel | 65% | -5/Factory Studied --------- Arm. Wheel | -8/Materials | Hacked Com. Wheel | -8/Materials | Hacked Grenade Launcher | -7/Factory | Hacked Wheel | -6/Factory | Hacked Imp. EM Pulse Cannon | -6/Factory | Hacked Alien Tech Used ----------------- None Achievements -------------- A Powerful Ally? Adventurer Look Less Dangerous Next Time Challenges ------------ None Game ------ Seed MediumFusionArray Manual? 0 Play Time 01:25:20 Cumulative 96.6 hours Start 2026.02.21 @ 05:04:34 End 2026.02.21 @ 06:46:39 Sessions 1 Manual Loads 0 Difficulty Rogue Special Mode None Game No. 150 Rogue 150 Adventurer 0 Explorer 0 Win Type - Total 0 Types 0/0/0/0/0/0/0/0/0/0 Lore% 18 Gallery% 38 Achievement% 28 Wizard Run 0 Options --------- Layout 1 ASCII 0 Keyboard 0 Movement Mouse Keybinds 0 Fullscreen 2 Font 24/Smallcaps Map View 50x35 Zoom Use 33% Tactical HUD 1 Map Filters NONE Filters NONE Steam 1 RUN: 2ff36c45-538f-4720-92f1-29d04c339bb4